bitfinex/quotes_ETHUSD_20260302
["timestamp","ask_amount","ask_price","bid_price","bid_amount"]
[1772445609671,6.78695458,1949.1,1948.7,0.0011]
[1772445609869,0.26769999,1949.0,1948.7,0.0011]
[1772445611706,5.68695458,1948.9,1948.4,0.0011]
[1772445611893,5.68695458,1948.5,1947.9,0.003]
[1772445612222,2.379,1948.4,1947.9,2.93184712]
[1772445612516,2.381,1948.4,1947.9,1.64841476]
[1772445612806,5.68695458,1948.3,1947.9,0.003]
[1772445613107,5.68695458,1948.3,1947.4,1.28373248]
[1772445613108,5.68695458,1948.0,1947.2,5.92758547]
[1772445613282,5.68695458,1947.7,1947.2,1.64541476]
[1772445613896,5.74234401,1948.2,1947.4,6.08949172]
[1772445614096,5.13226096,1948.5,1947.4,6.08949172]
[1772445614097,3.66515109,1948.4,1947.4,6.08949172]
[1772445614297,12.10502228,1948.8,1947.4,6.08949172]
[1772445614298,5.74234401,1948.8,1948.0,6.08949172]
[1772445615007,5.74234401,1948.8,1948.1,7.73490648]
[1772445615227,5.74234401,1948.8,1948.1,6.08949172]
[1772445615522,1.28425182,1949.0,1948.1,6.08949172]
[1772445615824,0.00153886,1949.0,1948.3,6.08949172]
[1772445615998,0.00153886,1949.0,1948.5,6.08949172]
[1772445616318,0.00153886,1949.0,1948.4,2.92851884]
[1772445618023,5.8336094,1949.0,1948.4,1.64541476]
[1772445618395,5.83207054,1948.6,1947.9,1.28338648]
[1772445618719,5.83207054,1948.6,1948.0,1.64541476]
[1772445618891,5.83207054,1948.6,1947.6,1.28359233]
[1772445619224,5.83207054,1948.4,1947.7,1.64541476]
[1772445619528,5.83207054,1948.4,1947.4,7.20960152]
[1772445620023,5.83207054,1948.2,1947.4,7.20960152]
[1772445620320,8.21707054,1948.2,1947.4,7.20960152]
[1772445621520,5.83207054,1948.1,1947.4,1.28371143]
[1772445621722,5.83207054,1948.1,1947.7,0.0011]
[1772445621904,7.41172632,1947.8,1947.0,0.00153886]
[1772445622227,5.83207054,1947.8,1947.5,0.0011]
[1772445622426,2.386,1947.9,1947.5,0.0011]
[1772445622593,2.386,1947.8,1947.5,0.0011]
[1772445622795,2.386,1948.0,1947.5,1.64651476]
[1772445623094,5.83207054,1948.1,1947.5,1.64651476]
[1772445623295,8.21807054,1948.0,1947.5,1.64651476]
[1772445623697,5.83207054,1947.9,1947.5,0.0011]
[1772445624123,7.11553197,1947.9,1947.5,0.0011]
[1772445624997,5.83207054,1947.9,1947.5,1.64651476]
[1772445625324,8.22007054,1947.8,1947.4,0.0011]
[1772445625497,5.83207054,1947.7,1947.4,0.0011]
[1772445626139,7.11570167,1947.6,1947.4,0.0011]
[1772445626435,2.389,1947.6,1947.4,0.0011]
[1772445627937,5.83207054,1947.5,1947.4,0.0011]
[1772445628233,7.11576758,1947.5,1947.4,0.0011]
[1772445628546,1.28367862,1947.6,1947.4,0.0011]
[1772445628849,2.392,1947.5,1947.4,0.0011]
[1772445629805,2.394,1947.5,1947.4,0.0011]
[1772445630348,3.67769704,1947.5,1947.4,0.0011]
[1772445630525,7.11560624,1947.8,1947.4,0.0011]
[1772445630725,2.395,1947.7,1947.4,0.0011]
[1772445630930,8.22707054,1947.7,1947.4,0.0011]
[1772445631445,2.396,1947.6,1947.4,0.0011]
[1772445631652,8.22807054,1947.6,1947.0,0.00153886]
[1772445632143,5.83207054,1947.5,1947.0,0.00153886]
[1772445632444,7.11581718,1947.5,1947.0,0.00153886]
[1772445632644,2.397,1947.5,1947.0,0.00153886]
[1772445632846,2.397,1948.0,1947.0,5.92742895]
[1772445633046,8.22907054,1948.0,1947.0,5.92742895]
[1772445633236,2.397,1947.9,1947.1,5.92589009]
[1772445633824,3.596,1947.8,1947.1,5.92589009]
[1772445634025,3.596,1947.8,1947.5,0.0011]
[1772445634552,5.13322612,1948.1,1947.6,7.20952122]
[1772445634553,3.79,1948.1,1947.6,7.20952122]
[1772445634930,3.67921699,1948.3,1947.6,7.20952122]
[1772445635253,1.19999981,1948.2,1947.6,7.20952122]
[1772445635420,1.19999981,1948.2,1947.7,5.92589009]
[1772445636842,0.001,1948.5,1947.9,5.92589009]
[1772445638833,0.001,1948.5,1948.0,1.28336755]
[1772445639729,0.001,1948.5,1948.0,7.20925764]
[1772445640060,0.00153886,1949.0,1948.3,7.50554587]
[1772445640229,0.00153886,1949.0,1948.4,5.92589009]
[1772445641454,0.00153886,1949.0,1948.5,7.20892832]
[1772445643325,0.00153886,1949.0,1948.5,5.92589009]
[1772445643525,0.00153886,1949.0,1948.5,7.20891173]
[1772445645671,0.00153886,1949.0,1948.5,7.18331009]
[1772445646026,1.28241778,1949.5,1948.6,5.92589009]
[1772445646339,0.001,1948.9,1948.6,5.92589009]
[1772445646542,5.83207054,1949.6,1948.8,5.92589009]
[1772445646543,7.11442399,1949.6,1948.8,5.92589009]
[1772445646743,1.28218278,1949.8,1949.1,5.92589009]
[1772445646944,1.28316466,1949.9,1949.1,5.92589009]
[1772445647527,7.07717587,1949.9,1949.0,7.11373187]
[1772445650360,9.45717587,1949.9,1949.0,7.11373187]
[1772445650556,1.28316466,1949.9,1949.0,7.11373187]
[1772445650933,0.001,1949.9,1949.0,7.11373187]
[1772445651155,0.001,1949.9,1949.2,5.83105379]
[1772445651630,0.001,1949.9,1949.3,7.11356546]
[1772445651862,0.001,1949.9,1949.3,5.83105379]
[1772445652168,5.79401121,1949.7,1948.7,5.83105379]
[1772445652674,5.79401121,1949.7,1948.5,7.11409202]
[1772445652875,5.79401121,1949.4,1948.5,5.83105379]
[1772445653451,5.79401121,1949.7,1948.5,2.21323614]
[1772445653673,1.926,1949.5,1948.6,5.83105379]
[1772445653882,1.28244588,1949.4,1948.7,7.11396034]
[1772445654562,1.28244588,1949.4,1948.7,5.83105379]
[1772445654765,7.07645709,1949.4,1948.4,7.11411392]
[1772445655165,7.07645709,1949.4,1948.4,5.83105379]
[1772445655867,7.07645709,1949.4,1948.5,1.28303823]
[1772445656781,7.07645709,1949.4,1948.4,7.11410767]
[1772445658684,7.07645709,1949.4,1948.6,0.0011]
[1772445659183,8.17401121,1949.3,1948.6,0.0011]
[1772445659483,11.96401121,1949.3,1948.6,0.0011]
[1772445660091,11.96401121,1949.3,1948.6,5.83215379]
[1772445660582,1.28264327,1949.1,1948.6,7.11511474]
[1772445661372,1.28264327,1949.1,1948.6,5.83215379]
[1772445661569,7.07665448,1949.1,1948.5,0.0011]
[1772445662287,7.07665448,1949.1,1948.5,7.11514911]
[1772445662482,9.45865448,1949.1,1948.5,7.11514911]
[1772445662684,3.79,1949.3,1948.5,7.11514911]
[1772445662685,1.28256004,1949.3,1948.5,7.11514911]
[1772445662887,3.66449146,1949.4,1948.5,7.11514911]
[1772445663970,3.66445235,1949.4,1948.6,5.83105379]
[1772445664687,3.66445235,1949.4,1948.7,7.11396034]
[1772445666595,3.66445235,1949.4,1948.7,5.83105379]
[1772445666889,5.79401121,1949.3,1948.5,0.0011]
[1772445667484,0.5,1949.2,1948.5,0.0011]
[1772445667684,5.79401121,1949.1,1948.5,0.0011]
[1772445668679,5.79401121,1948.9,1948.5,0.0011]
[1772445668878,5.79401121,1948.8,1948.5,0.0011]
[1772445670501,5.79401121,1949.0,1948.5,0.0011]
[1772445670797,3.66475571,1949.0,1948.5,5.83215379]
[1772445671172,9.45876692,1949.0,1948.5,0.0011]
[1772445672281,9.45876692,1949.0,1948.6,0.0011]
[1772445672678,3.66461652,1949.2,1948.7,7.11396034]
[1772445672878,3.66461652,1949.2,1948.7,5.83105379]
[1772445673402,0.6,1949.1,1948.7,5.83105379]
[1772445673782,3.66459074,1949.2,1948.7,5.83105379]
[1772445674793,2.382,1949.2,1948.7,7.11392062]
[1772445675296,3.6645794,1949.2,1948.7,7.11392062]
[1772445675696,2.382,1949.2,1948.7,7.11392062]
[1772445676104,3.66459077,1949.2,1948.7,7.11392062]
[1772445676408,1.28259077,1949.2,1948.7,5.83105379]
[1772445676875,1.28259077,1949.2,1948.7,7.11395466]
[1772445677377,1.28259077,1949.2,1948.7,5.83105379]
[1772445677685,6.82348154,1949.2,1948.6,0.0011]
[1772445678008,6.82348154,1949.2,1948.6,5.79160892]
[1772445679682,6.82348154,1949.2,1948.6,7.07457183]
[1772445680402,1.28354726,1949.3,1948.6,7.07457183]
[1772445680720,2.384,1949.2,1948.6,7.07457183]
[1772445682621,5.07354726,1949.3,1948.6,7.07457183]
[1772445682836,7.45754726,1949.3,1948.6,7.07457183]
[1772445683017,12.99843803,1949.3,1948.6,7.07457183]
[1772445683335,5.54089077,1949.2,1948.6,7.07457183]
[1772445683495,5.54089077,1949.2,1948.6,5.79160892]
[1772445683693,5.54089077,1949.2,1948.6,7.07458062]
[1772445684092,5.54089077,1949.2,1948.6,0.0011]
[1772445684310,5.54089077,1949.1,1948.5,0.0011]
[1772445684622,6.82373149,1948.8,1948.5,0.0011]
[1772445684799,5.54089077,1948.6,1948.5,0.0011]
[1772445685001,5.54089077,1948.6,1948.0,0.00153886]
[1772445685324,5.54089077,1948.5,1948.0,0.00153886]
[1772445685489,5.54089077,1948.4,1948.0,0.00153886]
[1772445685689,5.54089077,1948.2,1948.0,0.00153886]
[1772445686623,1.28330167,1948.1,1948.0,0.00153886]
[1772445687725,6.82419244,1948.1,1948.0,0.00153886]
[1772445689834,6.82419244,1948.1,1947.5,0.0011]
[1772445690042,5.54089077,1947.9,1947.6,0.003]
[1772445690414,5.54089077,1947.9,1947.5,0.0011]
[1772445690610,6.82419244,1948.1,1947.5,0.0041]
[1772445690810,2.395,1948.1,1947.5,5.79460892]
[1772445691218,2.393,1948.2,1947.6,5.79050892]
[1772445691837,2.393,1948.2,1947.8,5.79050892]
[1772445692337,5.54089077,1948.6,1947.7,1.28356523]
[1772445692338,2.395,1948.8,1948.1,5.79050892]
[1772445692738,2.395,1948.8,1947.7,1.28356523]
[1772445692909,5.54089077,1948.7,1947.7,7.07407415]
[1772445693104,2.395,1948.8,1947.9,5.79050892]
[1772445693304,7.93589077,1948.8,1947.9,5.79050892]
[1772445693805,1.28290655,1948.7,1947.9,7.0739049]
[1772445694937,1.28288669,1948.8,1947.9,7.0739049]
[1772445696116,5.13126824,1948.9,1947.9,3.49663212]
[1772445696317,5.13126824,1948.9,1948.0,5.79050892]
[1772445696909,1.28277489,1948.9,1948.0,5.79050892]
[1772445697137,0.00153886,1949.0,1948.3,5.79050892]
[1772445697339,0.00153886,1949.0,1948.6,5.79050892]
[1772445698040,0.001,1949.2,1948.7,7.07341547]
[1772445698206,1.28236228,1949.6,1949.0,5.79050892]
[1772445698605,1.28321209,1949.8,1949.0,5.79050892]
[1772445699233,0.001,1949.8,1949.2,5.79050892]
[1772445699647,0.001,1949.8,1949.4,5.79050892]
[1772445700117,0.001,1949.9,1949.5,7.07288901]
[1772445700319,1.28287649,1950.3,1949.6,5.79050892]
[1772445702006,0.001,1950.3,1949.6,7.0728184]
[1772445703245,0.001,1950.3,1949.6,5.79050892]
[1772445703535,0.001,1950.3,1949.8,5.79050892]
[1772445703736,0.001,1950.3,1949.9,1.57874611]
[1772445703944,0.001,1950.3,1949.9,7.36925503]
[1772445704932,0.001,1950.3,1949.9,8.65136995]
[1772445705312,1.28265692,1950.6,1950.0,5.79050892]
[1772445705810,0.001,1950.6,1950.0,5.79050892]
[1772445706224,5.54189077,1950.6,1949.7,5.79050892]
[1772445706913,1.28172263,1950.5,1949.8,7.0726917]
[1772445707428,2.384,1950.4,1949.5,6.61809343]
[1772445707650,5.28516692,1950.3,1949.5,6.61809343]
[1772445707817,2.384,1950.4,1949.5,6.61809343]
[1772445708014,6.56688955,1950.5,1949.7,5.33575912]
[1772445708435,6.54125247,1950.5,1949.7,5.33575912]
[1772445709217,6.54125247,1950.5,1949.8,1.28218278]
[1772445709414,1.25608555,1950.5,1949.9,5.33575912]
[1772445709841,1.25608555,1950.5,1949.8,2.86092889]
[1772445709842,0.001,1950.6,1950.1,5.33575912]
[1772445710409,0.001,1950.4,1950.1,5.33575912]
[1772445711119,0.001,1950.4,1950.1,6.61772297]
[1772445711320,0.001,1950.6,1950.3,5.33575912]
[1772445711844,6.56813926,1951.0,1950.3,5.33575912]
[1772445712141,1.28297234,1951.0,1950.4,1.57874611]
[1772445712345,0.00153886,1951.0,1950.5,5.33575912]
[1772445712851,0.00153886,1951.0,1950.6,6.91450523]
[1772445713140,0.00153886,1951.0,1950.7,5.33575912]
[1772445713340,0.00153886,1951.0,1950.7,6.61734069]
[1772445713546,0.00153886,1951.0,1950.7,5.33575912]
[1772445714347,0.00153886,1951.0,1950.7,6.61733982]
[1772445714526,1.28113149,1951.4,1950.7,6.61733982]
[1772445715137,1.28206584,1951.5,1950.7,6.61733982]
[1772445715944,0.001,1951.5,1950.9,5.33575912]
[1772445716249,0.001,1951.5,1951.1,5.33575912]
[1772445716917,1.2808437,1951.9,1951.2,6.91450523]
[1772445717116,1.2808437,1951.9,1951.3,5.33575912]
[1772445717345,1.2808437,1951.9,1951.0,8.19587093]
[1772445717346,6.56601062,1951.9,1951.0,8.19587093]
[1772445717644,5.28516692,1951.8,1951.0,6.61712482]
[1772445718346,5.28516692,1951.8,1951.0,8.19587093]
[1772445719218,1.2808437,1951.9,1951.3,5.33575912]
[1772445719423,0.001,1952.2,1951.8,1.57874611]
[1772445719746,0.001,1952.8,1952.2,1.57874611]
[1772445720219,0.001,1952.8,1951.8,1.57874611]
[1772445720220,6.92916692,1952.7,1951.8,1.57874611]
[1772445720422,6.92916692,1952.7,1951.7,5.33575912]
[1772445721025,5.28516692,1952.6,1951.3,5.33575912]
[1772445721344,7.50816692,1952.5,1951.5,1.28106584]
[1772445721518,7.50816692,1952.5,1951.5,6.61682496]
[1772445721718,7.66216692,1952.5,1951.5,6.61682496]
[1772445722028,5.28516692,1952.5,1951.5,6.61682496]
[1772445722429,5.28516692,1952.5,1951.6,1.57874611]
[1772445722626,5.28516692,1952.5,1951.6,6.91450523]
[1772445722915,1.2803234,1952.7,1951.8,6.91450523]
[1772445723120,0.001,1952.6,1952.2,1.57874611]
[1772445723977,0.001,1952.6,1952.3,1.2805409]
[1772445724257,0.001,1952.6,1952.1,5.12260511]
[1772445725239,0.001,1952.6,1952.1,10.45836423]
[1772445725617,0.001,1952.8,1952.2,5.33575912]
[1772445725821,0.001,1952.8,1952.3,8.19504613]
[1772445726033,0.001,1952.8,1952.0,5.33575912]
[1772445726220,5.28616692,1952.8,1951.6,5.40129512]
[1772445726424,5.28516692,1952.7,1951.6,5.33575912]
[1772445726830,0.001,1952.8,1951.8,5.33575912]
[1772445727040,0.001,1952.8,1951.9,6.91450523]
[1772445727443,5.28616692,1952.8,1951.5,1.7282311]
[1772445727619,5.28616692,1952.8,1951.6,5.33575912]
[1772445728033,6.5654455,1952.7,1951.8,5.33575912]
[1772445728233,6.5654455,1952.7,1951.7,2.85968067]
[1772445728234,1.28027858,1952.7,1951.9,6.91450523]
[1772445728586,1.28125389,1952.8,1951.9,6.91450523]
[1772445728737,1.28125389,1952.8,1952.0,5.33575912]
[1772445730169,1.28125389,1952.8,1952.0,6.61643233]
[1772445730170,0.001,1952.8,1952.0,6.61643233]
[1772445730567,5.28616692,1952.8,1951.8,5.12340068]
[1772445730892,5.28516692,1952.7,1951.4,8.69950523]
[1772445731182,5.28516692,1952.7,1951.5,10.45984682]
[1772445731535,5.28516692,1952.4,1951.4,1.785]
[1772445731738,5.28516692,1952.3,1951.4,1.785]
[1772445731954,5.28516692,1952.3,1951.4,3.0661233]
[1772445732158,1.28060649,1952.2,1951.4,3.0661233]
[1772445732569,1.28060649,1952.2,1951.4,8.40188242]
[1772445734087,5.12168879,1952.5,1951.6,1.2810002]
[1772445734243,5.12168879,1952.5,1951.6,7.10695243]
[1772445735895,1.28040973,1952.5,1951.8,7.40469834]
[1772445736758,0.001,1952.6,1951.9,1.28080331]
[1772445737271,5.83993159,1952.6,1951.8,8.68552198]
[1772445737590,5.83993159,1952.6,1951.6,1.2810002]
[1772445737882,5.83893159,1952.5,1951.5,8.99508868]
[1772445738958,1.28047531,1952.4,1951.6,5.49797297]
[1772445739159,1.28047531,1952.4,1951.6,7.07671908]
[1772445739661,7.11939262,1952.5,1951.6,7.07671908]
[1772445740366,7.11939262,1952.5,1951.7,5.49797297]
[1772445741163,0.001,1952.6,1952.0,5.49797297]
[1772445741391,0.001,1952.8,1952.2,7.07671908]
[1772445741693,0.00153886,1953.0,1952.7,1.57874611]
[1772445741879,0.001,1953.2,1952.7,1.57874611]
[1772445741880,0.001,1953.2,1952.7,7.07671908]
[1772445742504,1.28166486,1953.7,1952.9,7.07671908]
[1772445742656,0.002,1953.7,1953.2,5.49797297]
[1772445743318,1.27941158,1954.1,1953.6,5.49797297]
[1772445743472,1.28023548,1954.3,1953.8,1.57874611]
[1772445743660,7.11916707,1954.3,1953.3,5.49797297]
[1772445744003,1.57874611,1954.1,1953.0,0.00153886]
[1772445744192,7.11926567,1955.0,1953.8,5.49797297]
[1772445744996,7.11926567,1955.0,1953.9,7.07671908]
[1772445745195,7.11926567,1955.0,1954.0,6.77735245]
[1772445746396,7.11926567,1955.0,1954.0,6.77739809]
[1772445746752,7.11926567,1955.0,1953.9,3.33344907]
[1772445747288,7.11926567,1955.0,1953.9,3.33349229]
[1772445747289,7.1178348,1954.8,1953.9,3.33349229]
[1772445747464,7.1178348,1954.8,1953.8,1.27951204]
[1772445747465,9.4818348,1954.8,1953.8,1.27951204]
[1772445747657,5.83893159,1954.7,1953.5,1.27975428]
[1772445748562,5.83893159,1954.7,1953.5,6.77772725]
[1772445748814,5.83893159,1954.4,1953.1,6.77794741]
[1772445749092,8.20193159,1954.3,1953.1,6.77794741]
[1772445749260,1.27929587,1954.2,1953.1,6.77794741]
[1772445749874,1.27919562,1954.4,1953.5,5.49797297]
[1772445750085,1.27910967,1954.5,1953.6,5.49797297]
[1772445750297,9.48100981,1954.6,1953.6,5.49797297]
[1772445750600,7.11800981,1954.6,1953.6,5.49797297]
[1772445750801,9.48100981,1954.6,1953.6,5.49797297]
[1772445751375,9.48100981,1954.6,1953.7,6.77759624]
[1772445751575,9.48100981,1954.6,1953.7,8.35634235]
[1772445751800,2.363,1954.6,1953.8,5.49797297]
[1772445751978,1.27905325,1954.6,1953.8,5.49797297]
[1772445752381,7.11798484,1954.6,1953.7,1.27962327]
[1772445752697,7.11796142,1954.7,1953.7,1.27962327]
[1772445752898,7.11796142,1954.7,1953.8,5.49797297]
[1772445753406,3.64094842,1954.8,1954.0,1.27942681]
[1772445753700,1.27894842,1954.8,1954.0,1.27942681]
[1772445754073,1.27894842,1954.8,1954.0,6.77739978]
[1772445754500,1.27984333,1954.9,1954.0,6.77739978]
[1772445754800,1.27984333,1954.9,1954.1,7.07671908]
[1772445755187,7.11877492,1954.9,1954.0,1.27942681]
[1772445755390,7.11877492,1954.9,1953.9,5.11796832]
[1772445755391,7.11877492,1954.9,1953.9,1.27946175]
[1772445755783,0.001,1954.9,1954.0,5.49797297]
[1772445755989,3.72839102,1955.4,1954.8,1.57874611]
[1772445756312,5.83893159,1955.6,1954.5,7.07671908]
[1772445756313,7.11736729,1955.6,1954.5,7.07671908]
[1772445756892,7.11736729,1955.6,1954.6,5.49797297]
[1772445757311,5.83893159,1955.4,1954.2,2.64127719]
[1772445757612,1.27870697,1955.1,1954.1,6.77733431]
[1772445758020,1.27870697,1955.1,1954.3,5.49797297]
[1772445758198,7.11763856,1955.1,1954.1,1.27936134]
[1772445758382,7.11763856,1955.1,1954.2,1.57874611]
[1772445758784,2.359,1955.3,1954.1,6.77733431]
[1772445758785,1.27862325,1955.3,1954.5,5.49797297]
[1772445759065,1.27855711,1955.4,1954.6,1.57874611]
[1772445759190,5.83893159,1955.5,1954.4,5.49797297]
[1772445759391,5.83893159,1955.5,1954.4,7.07671908]
[1772445759688,8.19793159,1955.5,1954.4,7.07671908]
[1772445760192,1.27851079,1955.4,1954.5,1.27909951]
[1772445760626,0.002,1955.0,1954.4,6.77709128]
[1772445760925,20.002,1955.0,1954.4,6.77709128]
[1772445761293,14.04050611,1955.0,1954.4,6.77709128]
[1772445761710,14.04050611,1955.0,1954.4,1.27911831]
[1772445762416,14.04050611,1955.0,1954.3,10.61482415]
[1772445762831,5.83893159,1954.9,1954.1,1.28036103]
[1772445763725,5.83893159,1954.9,1954.1,6.778334]
[1772445764221,15.31929928,1955.0,1954.1,6.778334]
[1772445764426,15.31929928,1955.0,1954.2,2.1994372]
[1772445764643,15.31929928,1955.0,1954.3,1.27923041]
[1772445765310,19.8794377,1955.0,1954.3,1.27923041]
[1772445766149,0.002,1955.3,1954.6,5.49797297]
[1772445766305,0.002,1955.3,1954.8,7.69741017]
[1772445766501,0.002,1955.3,1954.9,1.27883779]
[1772445767021,5.83893159,1955.9,1955.1,2.1994372]
[1772445767334,7.11711777,1955.9,1954.9,1.27883779]
[1772445768019,8.20193159,1955.9,1954.9,7.17973812]
[1772445768222,3.64265825,1956.0,1954.9,7.17973812]
[1772445768433,3.64265779,1956.0,1954.9,7.17973812]
[1772445769925,1.27965779,1956.0,1954.9,7.17973812]
[1772445770126,7.04729856,1956.0,1954.9,1.27883779]
[1772445771053,5.76764077,1956.7,1955.6,2.1994372]
[1772445771555,7.04536743,1956.6,1955.7,5.11299723]
[1772445772052,7.04536743,1956.6,1955.6,1.2783467]
[1772445772737,5.76764077,1956.4,1955.6,1.2783467]
[1772445773235,2.363,1956.3,1955.6,1.2783467]
[1772445773431,3.64096913,1956.3,1955.6,1.2783467]
[1772445773635,0.002,1955.9,1955.6,1.2783467]
[1772445773837,2.363,1956.6,1955.6,9.37868423]
[1772445774047,5.76764077,1956.7,1955.9,2.1994372]
[1772445774253,7.0466485,1957.0,1956.0,0.14948499]
[1772445774419,7.0466485,1957.0,1955.9,8.10033753]
[1772445774624,0.002,1956.2,1955.9,8.10033753]
[1772445774826,0.002,1956.2,1955.9,5.90090033]
[1772445775226,7.0466485,1957.0,1955.9,5.90090033]
[1772445775653,7.0466485,1957.0,1956.0,1.2781186]
[1772445775846,2.363,1956.9,1956.0,1.2781186]
[1772445776164,5.76764077,1956.8,1955.6,5.90090033]
[1772445776458,5.76764077,1956.6,1955.6,1.27838003]
[1772445778162,7.04543274,1956.5,1955.6,1.27838003]
[1772445778463,8.12864077,1956.4,1955.6,1.27838003]
[1772445778632,5.76764077,1956.3,1955.5,2.213]
[1772445778826,5.76764077,1956.3,1955.5,3.49143537]
[1772445779027,8.12764077,1956.3,1955.5,3.49143537]
[1772445780166,1.27798793,1956.2,1955.5,3.49143537]
[1772445780967,7.0456287,1956.2,1955.4,1.27846031]
[1772445783164,5.76764077,1956.2,1955.4,1.27846031]
[1772445783368,1.27786847,1956.4,1955.4,7.17936064]
[1772445783728,7.04527381,1956.8,1955.7,5.90090033]
[1772445783961,7.04523933,1956.8,1955.8,6.05038532]
[1772445784198,7.04529286,1956.8,1955.9,1.27818395]
[1772445784567,6.54529286,1956.8,1955.9,1.27818395]
[1772445784965,6.54529286,1956.8,1955.7,2.208]
[1772445785197,5.76764077,1956.6,1955.7,3.48631039]
[1772445785575,5.76764077,1956.6,1955.7,2.208]
[1772445785900,5.76764077,1956.5,1955.5,1.27839417]
[1772445786069,5.76764077,1956.3,1955.5,1.27839417]
[1772445786269,7.0456287,1956.2,1955.4,1.27851079]
[1772445786686,7.0456287,1956.2,1955.9,0.001]
[1772445786999,2.1994372,1956.1,1955.0,1.28126039]
[1772445787202,5.76764077,1956.0,1955.7,0.001]
[1772445787407,5.76764077,1955.8,1955.0,1.28126039]
[1772445787704,5.76764077,1955.8,1955.0,0.00253886]
[1772445787883,5.76764077,1955.8,1955.0,1.28130955]
[1772445788310,1.27831466,1955.7,1955.0,0.00253886]
[1772445788795,7.04595543,1955.7,1955.0,0.00253886]
[1772445790303,2.1994372,1955.4,1954.3,5.90090033]
[1772445790468,5.76764077,1955.2,1954.0,9.38582166]
[1772445790667,5.76764077,1955.2,1954.1,1.28035533]
[1772445791194,2.359,1955.1,1954.1,7.18125566]
[1772445791402,5.76764077,1955.0,1954.1,7.18125566]
[1772445791564,5.76764077,1955.0,1954.1,1.28035954]
[1772445791764,5.76764077,1955.0,1954.1,0.001]
[1772445792090,5.76764077,1955.0,1954.1,1.28035374]
[1772445792694,7.04647856,1954.9,1954.1,1.28035374]
[1772445792903,9.40447856,1954.9,1954.1,1.28035374]
[1772445793071,1.27883779,1954.9,1954.1,7.25843983]
[1772445794907,10.96917942,1955.0,1954.1,7.25843983]
[1772445798974,10.96917942,1955.0,1954.2,0.001]
[1772445799599,5.93542279,1954.9,1954.2,0.001]
[1772445801226,7.214326,1954.8,1954.2,0.001]
[1772445803103,1.27890321,1954.8,1954.2,0.001]
[1772445803406,5.11561285,1954.9,1954.2,0.001]
[1772445804440,5.93542279,1954.8,1954.2,0.001]
[1772445804812,5.11442116,1955.3,1954.5,2.1994372]
[1772445805035,7.21395827,1955.4,1954.6,6.1354237]
[1772445805200,7.21395827,1955.4,1954.7,1.27896863]
[1772445805534,1.27853548,1955.4,1954.7,7.41439233]
[1772445807316,5.11379787,1955.5,1954.7,7.41439233]
[1772445807523,11.04922066,1955.5,1954.7,7.41439233]
[1772445807952,7.2138682,1955.5,1954.7,7.41439233]
[1772445808249,1.2782493,1955.8,1954.9,6.1354237]
[1772445808837,5.93542279,1955.7,1954.7,3.47496863]
[1772445809450,7.21380282,1955.6,1954.7,9.61039233]
[1772445811041,9.56780282,1955.6,1954.7,9.61039233]
[1772445811254,0.002,1955.3,1954.7,9.61039233]
[1772445813063,0.002,1955.3,1954.8,6.1354237]
[1772445813861,0.002,1955.3,1954.9,1.27883779]
[1772445814474,0.002,1955.3,1954.8,7.41427966]
[1772445816756,0.002,1955.3,1954.7,3.47493103]
[1772445816959,5.93742279,1955.3,1954.7,3.47493103]
[1772445817576,5.93742279,1955.3,1954.4,1.27916496]
[1772445817879,5.93742279,1955.3,1954.5,6.1354237]
[1772445818966,1.27864157,1955.2,1954.6,1.27903407]
[1772445821275,5.93542279,1955.2,1954.6,1.27903407]
[1772445821775,5.93542279,1955.2,1954.5,7.41451964]
[1772445821973,5.93542279,1955.2,1954.5,1.27909594]
[1772445822581,5.93542279,1955.2,1954.6,6.1354237]
[1772445822782,0.002,1955.3,1954.7,1.57083683]
[1772445823278,1.28057617,1955.3,1954.7,7.41435431]
[1772445823782,1.28057617,1955.3,1954.7,6.1354237]
[1772445823954,7.21599896,1955.3,1954.5,1.42853177]
[1772445825285,7.21599896,1955.3,1954.5,1.27904678]
[1772445825454,5.93542279,1955.2,1954.6,0.001]
[1772445825649,5.93742279,1955.2,1954.6,0.001]
[1772445826185,5.93742279,1955.2,1954.6,6.1364237]
[1772445827992,7.21611501,1955.2,1954.6,7.41541535]
[1772445828357,5.93742279,1955.2,1954.6,7.41541535]
[1772445828780,7.21606525,1955.2,1954.6,7.41541535]
[1772445829597,7.21606769,1955.2,1954.6,7.41541535]
[1772445829987,0.002,1955.2,1954.6,7.41541535]
[1772445830380,5.56381157,1955.2,1954.6,7.41541535]
[1772445831302,0.002,1955.2,1954.6,7.41541535]
[1772445836704,0.002,1955.2,1954.7,5.90963128]
[1772445837422,0.002,1955.6,1955.0,5.90963128]
[1772445837623,5.56181157,1955.7,1955.2,1.57083683]
[1772445838003,5.56181157,1955.7,1955.2,7.48046811]
[1772445838199,6.84003522,1955.9,1955.2,1.57083683]
[1772445838532,6.84003522,1955.9,1955.3,5.90963128]
[1772445838733,6.84003522,1955.9,1955.3,7.18820474]
[1772445839223,6.84003522,1955.9,1954.9,7.18846907]
[1772445839412,5.56181157,1955.8,1954.9,7.18846907]
[1772445840332,7.45912796,1956.0,1955.4,1.57083683]
[1772445840333,6.84150043,1956.0,1955.4,1.57083683]
[1772445840554,5.56335043,1956.0,1955.4,7.48046811]
[1772445840742,5.56181157,1956.2,1955.6,1.27838003]
[1772445841129,5.56181157,1956.2,1955.6,7.18801131]
[1772445841310,9.18572067,1956.4,1955.6,7.18801131]
[1772445841708,6.83972067,1956.4,1955.6,7.18801131]
[1772445841905,5.56181157,1956.3,1955.2,8.11863128]
[1772445842137,5.56181157,1956.3,1955.0,7.18989633]
[1772445842363,5.56181157,1956.0,1955.0,0.00153886]
[1772445842513,5.56181157,1955.8,1955.0,1.28030699]
[1772445842945,5.56181157,1955.6,1955.0,0.00153886]
[1772445844213,7.90681157,1955.6,1955.0,0.00153886]
[1772445844849,6.84025698,1955.5,1955.0,0.00153886]
[1772445845361,5.56181157,1955.5,1955.0,0.00153886]
[1772445846837,5.56181157,1955.3,1954.7,0.001]
[1772445848456,5.56181157,1955.3,1954.5,0.001]
[1772445849061,5.56181157,1955.1,1954.5,0.001]
[1772445849226,5.56181157,1954.9,1954.3,0.001]
[1772445849822,7.90781157,1954.8,1954.3,0.001]
[1772445850125,5.56181157,1954.7,1954.3,0.001]
[1772445850753,5.56181157,1954.6,1954.3,0.001]
[1772445851166,5.56181157,1954.4,1954.3,0.001]
[1772445851821,7.90881157,1954.4,1954.3,0.001]
[1772445852647,7.90881157,1954.4,1954.1,0.001]
[1772445852850,7.07910274,1954.6,1954.1,0.001]
[1772445853074,2.349,1954.5,1954.4,0.001]
[1772445853358,2.35,1954.7,1954.4,0.001]